[Event "44th Chess Olympiad Open 2022"]
[Site "Chennai"]
[Date "2022.08.09"]
[Round "11.9"]
[White "Berkes, Ferenc"]
[Black "Tabatabaei, M. Amin"]
[Result "1/2-1/2"]
[ECO "E51"]
[WhiteElo "2649"]
[BlackElo "2664"]
[Annotator "TA"]
[PlyCount "191"]
[EventDate "2022.07.29"]
[EventType "team-tourn"]
[EventCountry "IND"]
[SourceTitle "playchess.com"]
[Source "ChessBase"]
[SourceQuality "1"]
[WhiteTeam "Hungary"]
[BlackTeam "Iran"]
[WhiteTeamCountry "HUN"]
[BlackTeamCountry "IRI"]
[TimeControl "40/5400+30:1800+30"]

{[%evp 16,191,5,0,0,16,13,0,5,0,0,10,62,59,70,60,60,31,250,248,245,293,262,188,242,269,242,261,244,253,306,297,294,195,190,194,215,209,220,196,218,179,293,250,299,283,257,219,309,300,233,231,221,154,159,159,156,148,156,0,0,0,154,141,145,151,152,143,147,140,261,255,263,251,260,250,230,229,279,223,225,152,154,147,147,155,165,165,165,165,165,147,147,147,106,60,70,70,70,0,60,14,60,27,60,60,68,68,68,60,60,60,68,68,68,68,68,68,68,68,75,75,75,75,75,68,68,68,68,68,68,68,68,68,68,68,68,0,60,60,60,60,60,60,60,60,60,60,60,60,60,60,60,60,60,60,68,68,68,60,68,75,75,75,75,68,68,68,75,75,75,0,75,67,75,68,82,82]} 1. d4 {[%emt 0:00:04]} Nf6 {[%emt 0:00:06]} 2. c4 {[%emt 0:00:05]} e6 {[%emt 0:00:05]} 3. Nc3 {[%emt 0:00:06]} Bb4 {[%emt 0:00:19]} 4. e3 {[%emt 0:00:12]} O-O {[%emt 0:00:07]} 5. Bd3 {[%emt 0:00:05]} d5 {[%emt 0:03:40]} 6. a3 {[%emt 0:00:10]} dxc4 {[%emt 0:01:03]} 7. Bxc4 {[%emt 0:00:12]} Be7 {[%emt 0:00:16]} 8. Nf3 {[%emt 0:00:16]} c5 {[%emt 0:00:33]} 9. O-O {[%emt 0:00:09]} a6 {[%emt 0:00:04]} 10. dxc5 {[%emt 0:00:23]} Bxc5 {[%emt 0:00:57]} 11. Qe2 {[%emt 0:02:50]} b5 {[%emt 0:00:41]} 12. Ba2 {[%emt 0:00:08]} Bb7 {[%emt 0:18:20]} 13. e4 {[%emt 0:00:15]} Nbd7 {[%emt 0:01:11]} (13... Qc7 $1 $11) 14. e5 $1 $14 {[%emt 0:05:55]} Bxf3 {[%emt 0:07:04]} 15. gxf3 {[%emt 0:00:10]} Nh5 {[%emt 0:00:14]} 16. Rd1 {[%emt 0:03:34] Prevents Bd4. aiming for Ne4.} Qe7 $2 {[%emt 0:02:35] [#]} (16... Qc7 $14) 17. Ne4 $1 $18 {[%emt 0:14:57]} Ba7 {[%emt 0:03:45]} 18. Bg5 {[%emt 0:07:51]} f6 {[%emt 0:00:22]} 19. exf6 {[%emt 0:05:21]} gxf6 {[%emt 0:01:47] [#]} (19... Ndxf6 $142 20. Nd6 h6) 20. Rxd7 $1 {[%emt 0:07:57][%mdl 512]} Qxd7 {[%emt 0:00:06] [#]} 21. Nxf6+ $1 {[%emt 0:00:07][%mdl 512]} Rxf6 {[%emt 0:00:09]} 22. Bxf6 {[%emt 0:00:07]} Bxf2+ {[%emt 0:00:30]} 23. Kxf2 {[%emt 0:14:01]} Qa7+ {[%emt 0:00:53]} 24. Qe3 {[%emt 0:00:11]} Nxf6 {[%emt 0:01:19]} 25. Bxe6+ {[%emt 0:00:07]} Kf8 {[%emt 0:00:04] ...Qxe3+ is the strong threat.} 26. Rc1 {[%emt 0:02:24]} Qxe3+ {[%emt 0:12:04]} 27. Kxe3 {[%emt 0:00:06][%mdl 4096] Endgame KRB-KRN} Ke7 {[%emt 0:00:04]} 28. Rc6 {[%emt 0:03:14]} Ne8 {[%emt 0:00:23]} (28... a5 $142 29. Ba2 Nd7) 29. Kd4 {[%emt 0:07:39]} a5 {[%emt 0:02:34]} 30. Ke5 {[%emt 0:01:31]} b4 {[%emt 0:02:05]} 31. Rb6 {[%emt 0:04:37] Black must now prevent Rb7+.} Nc7 {[%emt 0:00:53]} (31... Ra7 $142 32. Bf5 (32. axb4 axb4 33. Bg8 Kf8 $18) 32... bxa3 33. bxa3 a4 34. Bxh7 Ra5+ 35. Kd4 Nc7) 32. Rb7 {[%emt 0:10:02]} ({Resist} 32. axb4 $6 axb4 33. Bf5 Ra5+ 34. Ke4 Nd5 35. Re6+ Kf8 $16) 32... Kd8 {[%emt 0:00:39]} 33. axb4 {[%emt 0:03:20]} axb4 {[%emt 0:01:51]} 34. Rxb4 {[%emt 0:02:48]} Ra5+ {[%emt 0:00:17]} 35. Kf6 {[%emt 0:00:13][%cal Rb4b8]} Ne8+ {[%emt 0:00:03]} 36. Kf7 {[%emt 0:00:07] And now Rd4+ would win.} Nd6+ {[%emt 0:00:03]} 37. Kf6 {[%emt 0:00:40] Strongly threatening Rd4.} Ne8+ {[%emt 0:00:07]} 38. Kf7 {[%emt 0:00:05]} Nd6+ {[%emt 0:00:03]} 39. Kg7 {[%emt 0:02:06]} Ke7 {[%emt 0:02:31] [#]} 40. Bg4 $1 {[%emt 0:04:49]} h5 {[%emt 0:00:48]} 41. Bh3 {[%emt 0:30:04]} Rg5+ {[%emt 0:31:11]} 42. Kh7 {[%emt 0:00:00]} Nf7 {[%emt 0:00:00]} (42... Rg1 $16 {might work better.} 43. Kh6 Rh1 44. Kxh5 Rxh2) 43. f4 {[%emt 0:00:00]} Rg1 {[%emt 0:00:00]} 44. Rb7+ {[%emt 0:00:00]} Kf8 {[%emt 0:00:00][%csl Gf8][%cal Rg1g7]} 45. Rb8+ {[%emt 0:00:00]} Ke7 {[%emt 0:00:00]} 46. Rg8 {[%emt 0:00:00]} Re1 {[%emt 0:00:00]} 47. Rg2 {[%emt 0:00:00] Prevents Re2.} Re3 {[%emt 0:00:00] [#]} 48. Kg7 $1 {[%emt 0:00:00]} Nd6 {[%emt 0:00:00]} 49. Rg3 {[%emt 0:00:00]} Re2 {[%emt 0:00:00]} 50. b3 {[%emt 0:00:00]} h4 {[%emt 0:07:08]} 51. Rf3 {[%emt 0:00:00]} Ne8+ {[%emt 0:03:28]} 52. Kg6 {[%emt 0:00:00]} Rxh2 {[%emt 0:00:05]} 53. Kg5 {[%emt 0:00:00]} Nd6 {[%emt 0:00:59]} 54. Re3+ {[%emt 0:00:00]} Kf7 {[%emt 0:00:14]} 55. f5 {[%emt 0:00:00]} (55. Bg4 $16) 55... Rh1 {[%emt 0:15:56]} 56. Bg4 {[%emt 0:00:00] Hoping for Re6.} Kg7 {[%emt 0:00:06]} 57. Bh3 {[%emt 0:02:58]} Kf7 $1 {[%emt 0:01:17]} 58. Kg4 {[%emt 0:00:17]} (58. Kf4 $14 {feels stronger.}) 58... Kg7 {[%emt 0:08:26]} (58... Rd1 $1 $11 {should be considered.}) 59. Re7+ {[%emt 0:00:08]} Kf8 {[%emt 0:00:01]} 60. Re6 {[%emt 0:00:23]} Rd1 {[%emt 0:00:05]} 61. Kxh4 {[%emt 0:03:50]} Rd3 {[%emt 0:04:03]} 62. b4 {[%emt 0:00:03]} Rd4+ {[%emt 0:00:13]} 63. Kh5 $1 {[%emt 0:00:47]} Nxf5 {[%emt 0:01:59]} 64. Bxf5 {[%emt 0:00:09]} Rxb4 $14 {[%emt 0:00:01] KRB-KR} 65. Bg6 {[%emt 0:03:22]} Kg7 {[%emt 0:00:43]} 66. Kg5 {[%emt 0:00:09]} Rb7 {[%emt 0:01:35]} 67. Rf6 {[%emt 0:00:03]} Rc7 {[%emt 0:00:18]} 68. Bf5 {[%emt 0:00:27]} Rf7 {[%emt 0:00:10]} 69. Re6 {[%emt 0:00:11]} Kf8 {[%emt 0:00:18]} 70. Bg6 {[%emt 0:00:10]} Re7 {[%emt 0:00:13]} 71. Rd6 {[%emt 0:00:10]} Rc7 {[%emt 0:00:51]} 72. Kf6 {[%emt 0:00:47][%cal Rd6d8]} Rf7+ $1 {[%emt 0:00:02]} 73. Ke6 {[%emt 0:00:07]} Re7+ {[%emt 0:00:04]} 74. Kf5 {[%emt 0:00:08]} Rc7 {[%emt 0:00:17]} 75. Re6 {[%emt 0:00:41]} Kg7 {[%emt 0:00:30]} 76. Kg5 {[%emt 0:00:08]} (76. Rb6 $14) 76... Rc5+ {[%emt 0:00:16]} (76... Rb7 $1 $11) 77. Bf5 {[%emt 0:00:05]} Kf7 {[%emt 0:00:26]} 78. Rd6 {[%emt 0:00:08]} Rc7 {[%emt 0:00:01]} 79. Rh6 {[%emt 0:00:13] Rh7+ would kill now.} Ke7 {[%emt 0:00:08]} 80. Re6+ {[%emt 0:00:06]} Kd8 {[%emt 0:01:14]} 81. Kf6 {[%emt 0:00:07] White threatens Rd6+ and mate.} Rc5 {[%emt 0:00:01]} 82. Be4 {[%emt 0:01:16]} Kd7 {[%emt 0:00:26]} 83. Ra6 {[%emt 0:00:19]} Rc1 {[%emt 0:01:14]} 84. Ke5 {[%emt 0:00:12]} Rc5+ {[%emt 0:00:06]} 85. Bd5 {[%emt 0:00:05]} Rc7 {[%emt 0:00:14]} 86. Rh6 {[%emt 0:00:45]} Ke7 {[%emt 0:00:15]} 87. Bc6 {[%emt 0:00:12]} Kd8 {[%emt 0:00:10]} 88. Rh8+ {[%emt 0:01:23]} Ke7 {[%emt 0:00:06]} 89. Bd5 {[%emt 0:00:03]} Kd7 {[%emt 0:00:23]} 90. Rh1 {[%emt 0:01:06]} Ke7 {[%emt 0:00:06]} 91. Rh6 {[%emt 0:00:16]} Kd7 {[%emt 0:00:14]} 92. Rg6 {[%emt 0:00:19]} Ke7 {[%emt 0:00:08]} 93. Ra6 {[%emt 0:00:08]} Kd7 {[%emt 0:00:39]} 94. Rd6+ {[%emt 0:01:57]} Ke7 {[%emt 0:00:02]} 95. Bc6 {[%emt 0:00:08]} Kf7 {[%emt 0:00:32]} 96. Be4 {[%emt 0:00:09]} 1/2-1/2

[Event "44th Chess Olympiad Open 2022"]
[Site "Chennai"]
[Date "2022.08.09"]
[Round "11.9"]
[White "Idani, Pouya"]
[Black "Banusz, Tamas"]
[Result "0-1"]
[ECO "B30"]
[WhiteElo "2641"]
[BlackElo "2611"]
[Annotator "TA"]
[PlyCount "76"]
[EventDate "2022.07.29"]
[EventType "team-tourn"]
[EventCountry "IND"]
[SourceTitle "playchess.com"]
[Source "ChessBase"]
[SourceQuality "1"]
[WhiteTeam "Iran"]
[BlackTeam "Hungary"]
[WhiteTeamCountry "IRI"]
[BlackTeamCountry "HUN"]
[TimeControl "40/5400+30:1800+30"]

{[%evp 10,76,28,29,36,27,36,24,21,10,25,10,7,8,4,0,8,9,8,-18,34,0,0,0,0,-27,-20,-66,-64,-111,-56,-73,-97,-112,-56,-121,-92,-127,-93,-229,-111,-127,-13,-154,-67,-58,-80,-64,-73,-63,-65,-70,-45,-75,-39,-33,-41,-217,-220,-210,-198,-240,-210,-323,-175,-863,-842,-1352,-1293]} 1. e4 {[%emt 0:00:02]} c5 {[%emt 0:00:07]} 2. Nf3 {[%emt 0:00:04]} Nc6 {[%emt 0:00:04]} 3. Bb5 {[%emt 0:00:05]} e6 {[%emt 0:00:08]} 4. O-O {[%emt 0:01:09]} Nge7 {[%emt 0:00:10][%cal Bg8e7,Be7g6,Bg6h4][%mdl 32]} 5. d4 {[%emt 0:02:02]} cxd4 {[%emt 0:00:08]} 6. Nxd4 {[%emt 0:00:12]} Ng6 $1 {[%emt 0:00:09][%mdl 4] now scores much better than the old 6...Qb6. B30: Sicilian: 2...Nc6 3 Bb5, lines without ...g6.} 7. Be3 {[%emt 0:01:25]} Be7 {[%emt 0:00:29]} 8. c3 {[%emt 0:00:07]} O-O {[%emt 0:00:23] White has an edge.} 9. Nd2 {[%emt 0:00:12]} Nxd4 {[%emt 0:00:26]} 10. cxd4 {[%emt 0:00:54]} d5 {[%emt 0:00:08]} 11. e5 {[%emt 0:03:48] [#]} Nh4 $146 {[%emt 0:00:49]} ({Predecessor:} 11... Qb6 12. Qb3 f6 13. f4 Nh4 14. Bf2 fxe5 15. dxe5 Qa5 16. Be1 Bb4 17. Bxh4 Qxb5 {½-½ (40) Dragnev,V (2548)-Tarun,K (2321) Terme Catez 2021}) 12. f4 {[%emt 0:05:25]} Bd7 {[%emt 0:04:34]} 13. Bd3 {[%emt 0:00:49]} Qb6 {[%emt 0:01:04]} 14. a4 {[%emt 0:04:12]} Rac8 {[%emt 0:14:01]} (14... Qxb2 $11 15. Rb1 Qc3) 15. Bf2 {[%emt 0:03:02]} (15. Qh5 Nf5 16. Qe2 Nxe3 17. Qxe3 Rc7 $15) 15... Ng6 {[%emt 0:04:53]} 16. g3 {[%emt 0:02:15]} Qxb2 {[%emt 0:09:28]} 17. Rb1 {[%emt 0:01:54]} Qc3 {[%emt 0:07:41]} 18. Qe2 {[%emt 0:12:33]} (18. Rb3 $1 $11 Qc7 19. Qa1) 18... Bxa4 $15 {[%emt 0:05:30]} 19. Rxb7 {[%emt 0:01:15]} (19. h4 $15) 19... Rc7 {[%emt 0:04:39]} ({Black should play} 19... a5 $1 $17 20. Bxg6 hxg6 21. Rxe7 Qb4) 20. Rxc7 {[%emt 0:08:01]} Qxc7 {[%emt 0:00:02]} 21. Nf3 {[%emt 0:02:13]} Rb8 {[%emt 0:02:45]} ({Better is} 21... a5 $17 22. Be3 Rb8) 22. h4 {[%emt 0:02:38]} (22. Ra1 $15 Bd7 23. Qa2) 22... Qc3 {[%emt 0:02:59]} 23. h5 {[%emt 0:01:42]} Nf8 {[%emt 0:01:20] Black is more active.} 24. g4 {[%emt 0:01:22]} (24. Be1 $17 {was worth a try.} Qa3 25. Bd2) 24... Rb2 {[%emt 0:04:25]} (24... Rb3 $1 $19 {has better winning chances.} 25. Ne1 h6) 25. Qe3 $17 {[%emt 0:00:17][%cal Od3h7]} Rb3 {[%emt 0:02:32]} (25... Qa3 $17 {Strongly threatening ...Rb3.} 26. Rb1 Rxb1+ 27. Bxb1 Qb2) 26. Ne1 {[%emt 0:03:23]} (26. Nd2 $1 $11 Qxd3 27. Nxb3 Qxb3 28. Qxb3 Bxb3 29. Rb1) 26... Bb5 {[%emt 0:14:01]} (26... Bd7 $17 {Hoping for ...a5.} 27. f5 exf5 28. gxf5 Bxf5 $1 {[%mdl 512]} 29. Bxf5 Qxe3 30. Bxe3 Rxe3) 27. Bxb5 $15 {[%emt 0:00:07]} Qxe3 {[%emt 0:00:07]} 28. Bxe3 {[%emt 0:00:03]} Rxb5 {[%emt 0:00:13]} 29. Nf3 {[%emt 0:00:17]} a5 {[%emt 0:01:04][%cal Ba7a5,Ba5b4,Bb4b3][%mdl 32] White must now prevent ...a4.} 30. Ra1 {[%emt 0:00:21]} Nd7 {[%emt 0:02:58]} 31. Bd2 $1 {[%emt 0:01:36]} Bb4 {[%emt 0:01:20]} 32. Bxb4 {[%emt 0:05:00]} axb4 {[%emt 0:00:07][%mdl 4096] Endgame KRN-KRN} ({Don't play} 32... Rxb4 33. Rxa5 Kf8 34. f5 $14) 33. Rb1 {[%emt 0:00:03]} (33. Ra7 $15) 33... b3 $19 {[%emt 0:04:45]} 34. Rb2 {[%emt 0:04:12]} Rb4 {[%emt 0:00:06]} 35. g5 {[%emt 0:08:06]} Kf8 {[%emt 0:01:36]} 36. h6 {[%emt 0:03:13]} (36. Kg2 {keeps fighting.}) 36... g6 {[%emt 0:03:28]} (36... gxh6 $142 37. gxh6 Nb6) 37. Kf1 $2 {[%emt 0:05:18] [#]} (37. Kg2) 37... Nb6 $1 {[%emt 0:00:51]} 38. Nd2 {[%emt 0:00:38]} Nc4 {[%emt 0:00:22] Weighted Error Value: White=0.64/Black=0.25 (precise)} 0-1

[Event "44th Chess Olympiad Open 2022"]
[Site "Chennai"]
[Date "2022.08.09"]
[Round "11.9"]
[White "Acs, Peter"]
[Black "Mousavi, Seyed Khalil"]
[Result "1-0"]
[ECO "C55"]
[WhiteElo "2575"]
[BlackElo "2537"]
[Annotator "RC"]
[PlyCount "83"]
[EventDate "2022.07.29"]
[EventType "team-tourn"]
[EventCountry "IND"]
[SourceTitle "playchess.com"]
[Source "ChessBase"]
[SourceQuality "1"]
[WhiteTeam "Hungary"]
[BlackTeam "Iran"]
[WhiteTeamCountry "HUN"]
[BlackTeamCountry "IRI"]
[TimeControl "40/5400+30:1800+30"]

1. e4 {[%emt 0:00:06]} e5 {[%emt 0:00:05]} 2. Nf3 {[%emt 0:00:12]} Nc6 {[%emt 0:00:07]} 3. Bc4 {[%emt 0:03:31]} Nf6 {[%emt 0:00:37]} 4. d3 {[%emt 0:01:27]} Bc5 {[%emt 0:00:39]} 5. O-O {[%emt 0:01:11]} O-O {[%emt 0:01:54]} 6. Nc3 {[%emt 0:04:23]} Nd4 {[%emt 0:09:51]} 7. Nxd4 {[%emt 0:11:30]} Bxd4 {[%emt 0:00:40]} 8. Ne2 {[%emt 0:00:23]} Bb6 {[%emt 0:01:28]} 9. Ng3 {[%emt 0:02:14]} c6 {[%emt 0:03:19]} 10. h3 {[%emt 0:03:33]} d5 {[%emt 0:08:36]} 11. Bb3 {[%emt 0:00:22]} Be6 {[%emt 0:04:18]} 12. Qf3 {[%emt 0:02:10]} Qd7 {[%emt 0:02:02]} 13. Be3 {[%emt 0:07:56]} Bc7 {[%emt 0:07:25]} 14. Rad1 {[%emt 0:11:05]} a5 {[%emt 0:01:50]} 15. a4 {[%emt 0:01:06]} d4 {[%emt 0:05:44]} 16. Bg5 {[%emt 0:00:36]} Ne8 {[%emt 0:00:41]} 17. Bxe6 {[%emt 0:02:26]} Qxe6 {[%emt 0:05:27]} 18. b3 {[%emt 0:04:39]} b5 {[%emt 0:01:39]} 19. Ra1 {[%emt 0:00:23]} Nd6 {[%emt 0:04:05]} 20. Qe2 {[%emt 0:03:55]} Nb7 {[%emt 0:06:17]} 21. f4 {[%emt 0:04:38]} f6 {[%emt 0:02:43]} 22. f5 {[%emt 0:00:42]} Qf7 {[%emt 0:00:20]} 23. Bd2 {[%emt 0:00:47]} Nc5 {[%emt 0:00:41]} 24. Nh5 {[%emt 0:01:33]} bxa4 {[%emt 0:01:04]} 25. bxa4 {[%emt 0:00:06]} Rfb8 {[%emt 0:00:47]} 26. g4 {[%emt 0:00:35]} Kf8 {[%emt 0:04:24]} 27. g5 {[%emt 0:02:16]} Ke7 {[%emt 0:02:24]} 28. Kh1 {[%emt 0:00:58]} h6 {[%emt 0:10:06]} 29. gxf6+ {[%emt 0:02:56]} gxf6 {[%emt 0:00:03]} 30. Rg1 {[%emt 0:00:13]} Rg8 {[%emt 0:00:07]} 31. Rg6 {[%emt 0:01:31]} Nd7 {[%emt 0:05:12]} 32. Rag1 {[%emt 0:00:52]} Kd6 {[%emt 0:01:36]} 33. Bxh6 {[%emt 0:01:16]} Rxg6 {[%emt 0:04:31]} 34. fxg6 {[%emt 0:01:22]} Qa2 {[%emt 0:00:36]} 35. Ng7 {[%emt 0:01:26]} Qxa4 {[%emt 0:02:17]} 36. Nf5+ {[%emt 0:00:40]} Kc5 {[%emt 0:00:04]} 37. g7 {[%emt 0:01:57]} Qa2 {[%emt 0:00:06]} 38. Bc1 {[%emt 0:02:11]} a4 {[%emt 0:01:22]} 39. h4 {[%emt 0:01:19]} a3 {[%emt 0:00:57]} 40. h5 {[%emt 0:00:57]} Qg8 {[%emt 0:00:22]} 41. Bxa3+ {[%emt 0:31:33]} Rxa3 {[%emt 0:30:06]} 42. Nh6 {[%emt 0:00:38]} 1-0

[Event "44th Chess Olympiad Open 2022"]
[Site "Chennai"]
[Date "2022.08.09"]
[Round "11.10"]
[White "Fressinet, Laurent"]
[Black "Mastrovasilis, Athanasios"]
[Result "1/2-1/2"]
[ECO "E02"]
[WhiteElo "2631"]
[BlackElo "2527"]
[Annotator "TA"]
[PlyCount "128"]
[EventDate "2022.07.29"]
[EventType "team-tourn"]
[EventCountry "IND"]
[SourceTitle "playchess.com"]
[Source "ChessBase"]
[SourceQuality "1"]
[WhiteTeam "France"]
[BlackTeam "Greece"]
[WhiteTeamCountry "FRA"]
[BlackTeamCountry "GRE"]
[TimeControl "40/5400+30:1800+30"]

{[%evp 23,128,0,0,-6,0,0,1,-21,31,37,32,14,40,33,39,41,64,63,68,59,64,56,62,63,65,64,68,66,65,66,62,69,78,16,16,16,16,16,16,18,27,33,53,14,18,13,26,0,78,76,93,93,82,83,132,74,84,67,80,47,166,122,270,270,268,265,262,193,193,66,66,66,73,81,66,65,66,0,8,0,66,66,88,8,73,73,88,8,8,8,8,0,8,0,88,8,8,8,8,8,8,8,8,0,8,0,8]} 1. d4 {[%emt 0:00:05]} Nf6 {[%emt 0:00:25]} 2. c4 {[%emt 0:00:28]} e6 {[%emt 0:00:09]} 3. g3 {[%emt 0:00:24]} d5 {[%emt 0:00:37]} 4. Bg2 {[%emt 0:00:07]} dxc4 {[%emt 0:00:13]} 5. Nf3 {[%emt 0:00:10]} c5 {[%emt 0:00:15]} 6. Qa4+ {[%emt 0:06:58]} Nbd7 {[%emt 0:03:22]} 7. Nc3 {[%emt 0:01:55]} a6 {[%emt 0:04:47]} 8. O-O {[%emt 0:03:27]} Rb8 {[%emt 0:08:12]} 9. dxc5 {[%emt 0:05:02]} Bxc5 {[%emt 0:05:16]} 10. Qxc4 {[%emt 0:00:35]} b5 {[%emt 0:02:18]} 11. Qd3 {[%emt 0:01:30]} Bb7 {[%emt 0:00:17]} 12. Bf4 {[%emt 0:02:02]} Rc8 {[%emt 0:00:25]} 13. Ng5 {[%emt 0:01:37] E02: Open Catalan: 5 Qa4+.} Bxg2 {[%emt 0:10:43]} 14. Kxg2 {[%emt 0:03:08]} e5 {[%emt 0:15:59]} 15. Bd2 {[%emt 0:10:35][%cal Bf4d2,Bd2a5,Ba5c3][%mdl 32] [#]} Nb6 $146 {[%emt 0:04:51]} (15... O-O $11) ({Predecessor:} 15... h6 16. Nge4 O-O 17. Rfd1 Qb6 18. Qf3 Bd4 19. e3 Nxe4 20. Qxe4 Nf6 21. Qf5 Qc6+ {½-½ (54) Istratescu,A (2670)-Bauer,C (2649) Geneve 2014}) 16. Qxd8+ $14 {[%emt 0:02:57]} Rxd8 {[%emt 0:00:10]} 17. Nce4 {[%emt 0:00:53]} Nxe4 {[%emt 0:07:55]} 18. Nxe4 {[%emt 0:00:55] Strongly threatening Ba5.} Be7 {[%emt 0:20:16]} 19. Ba5 {[%emt 0:04:14]} Rb8 {[%emt 0:05:29]} 20. Rac1 {[%emt 0:15:05] Bxb6 is the strong threat.} Nc4 {[%emt 0:01:12]} 21. Bc3 {[%emt 0:07:06]} f6 {[%emt 0:04:10]} 22. Rfd1 $1 {[%emt 0:02:21]} Kf7 {[%emt 0:00:45]} 23. b3 $1 {[%emt 0:03:54]} Nb6 {[%emt 0:00:03]} 24. Ba5 {[%emt 0:00:25]} Rhc8 {[%emt 0:00:33] Prevents Rc7.} 25. Rxc8 {[%emt 0:04:21]} Nxc8 {[%emt 0:00:02]} 26. Rc1 {[%emt 0:00:10] White is more active.} Ke6 {[%emt 0:01:40]} 27. f3 {[%emt 0:01:14]} f5 {[%emt 0:00:45]} 28. Nc5+ {[%emt 0:02:48]} (28. Bc7 $16 Ra8 29. Nc5+ Kd5 30. e4+ fxe4 31. fxe4+ (31. Nxe4 Na7 $14) 31... Kd4 32. Nd7 Kxe4 33. Bxe5) 28... Bxc5 $11 {[%emt 0:01:03]} 29. Rxc5 {[%emt 0:00:02][%mdl 4096] Endgame Black must now prevent Rc6+. KRB-KRN} Ne7 {[%emt 0:01:30] Prevents Rc6+.} 30. Bc7 {[%emt 0:02:29][%csl LRb8,LRe5]} Rc8 {[%emt 0:00:29]} 31. Rxe5+ {[%emt 0:01:01]} Kd7 $1 {[%emt 0:00:06]} 32. Bb6 {[%emt 0:00:19] aiming for Bc5.} Rc2 {[%emt 0:00:28]} 33. a4 {[%emt 0:02:02]} Kd6 {[%emt 0:00:56]} 34. f4 {[%emt 0:00:44]} Nd5 {[%emt 0:00:44]} 35. Ba7 {[%emt 0:02:27]} Rb2 {[%emt 0:00:57]} (35... g6 $11 {remains equal.}) 36. axb5 {[%emt 0:02:54]} axb5 {[%emt 0:00:04]} 37. Rxf5 {[%emt 0:00:13]} Rxe2+ {[%emt 0:00:20]} 38. Kh3 $1 {[%emt 0:00:47]} Ke6 {[%emt 0:01:17]} (38... Rb2 $142) 39. Rf8 {[%emt 0:00:37]} (39. Rh5 $142) 39... Rd2 $16 {[%emt 0:00:28]} 40. f5+ {[%emt 0:07:14]} Ke5 {[%emt 0:00:06]} 41. Rf7 {[%emt 0:31:24]} h5 {[%emt 0:14:09]} (41... b4 $14) 42. Bc5 {[%emt 0:00:00]} (42. Rxg7 $6 Kxf5 43. Rf7+ Kg6 $11) 42... Nf6 {[%emt 0:10:11]} (42... Ke4 $16 {was necessary.} 43. Bf8 (43. Rxg7 Rd3 $16) 43... Rf2 44. Bxg7 Rxf5 45. Rxf5 Kxf5) 43. Bf8 $1 $18 {[%emt 0:00:00]} ({Less strong is} 43. Rxg7 Kxf5 44. Rg5+ Kxg5 $16) 43... Rd7 {[%emt 0:00:23]} 44. Rxd7 {[%emt 0:00:00]} ({Resist} 44. Rxg7 Kxf5 45. Rxd7 Nxd7 $16) 44... Nxd7 {[%emt 0:00:02]} 45. Bxg7+ {[%emt 0:00:00]} Kxf5 {[%emt 0:00:01] KB-KN} 46. b4 {[%emt 0:00:00] Prevents Nc5.} (46. Bd4 $18) 46... Nb6 $14 {[%emt 0:00:37]} 47. Kh4 {[%emt 0:00:00]} Kg6 {[%emt 0:00:39]} 48. Bf8 {[%emt 0:00:00]} Nd7 {[%emt 0:00:40]} 49. Be7 {[%emt 0:00:00]} Ne5 {[%emt 0:00:10]} 50. Kh3 {[%emt 0:00:00]} (50. Bd6 $1 $14 Nf3+ 51. Kh3) 50... Kf5 {[%emt 0:00:26]} 51. Bd6 {[%emt 0:00:00] Hoping for Bxe5.} Nf3 {[%emt 0:04:50]} ({Better is} 51... Nd3 $1 $11) 52. Kg2 $1 {[%emt 0:00:00]} Ke4 {[%emt 0:00:37]} 53. Bc7 {[%emt 0:00:00]} ({White should play} 53. g4 $1 $16 {[%cal Rg4h5]}) 53... Ng5 {[%emt 0:01:20]} (53... Nd4 $1 $11) 54. Bb8 $16 {[%emt 0:00:00]} Nf3 {[%emt 0:00:26] [#]} 55. Bf4 {[%emt 0:00:00]} (55. g4 $1 $16 {[%cal Rg4h5]}) 55... Ne1+ $11 {[%emt 0:00:15]} 56. Kh3 {[%emt 0:00:00]} Nf3 {[%emt 0:00:05]} 57. Bd6 {[%emt 0:00:00] And now g4 would win.} Kf5 {[%emt 0:00:05] Inhibits g4+.} 58. Kg2 {[%emt 0:00:00]} ({White should try} 58. Bf8 $11) 58... Ke4 $1 $16 {[%emt 0:00:07] [#]} 59. h3 {[%emt 0:00:20]} (59. g4 $1 $16 {[%cal Rg4h5]}) 59... Ne1+ $1 $11 {[%emt 0:00:54] The position is equal.} 60. Kf2 {[%emt 0:00:06]} (60. Kf1 $5 {[%cal Rf1e1]} Nd3 61. Ke2 $11) 60... Nd3+ {[%emt 0:00:12]} 61. Ke2 {[%emt 0:00:38]} Nc1+ {[%emt 0:00:10]} 62. Kd2 {[%emt 0:02:40]} Nd3 {[%emt 0:00:32]} 63. Ke2 {[%emt 0:03:15]} Nc1+ {[%emt 0:00:05]} 64. Kf2 {[%emt 0:01:58]} Nd3+ {[%emt 0:00:23] Weighted Error Value: White=0.16 (very precise) /Black=0.18 (very precise)} 1/2-1/2